bitfinex/quotes_SOLUSD_20250904
["timestamp","ask_amount","ask_price","bid_price","bid_amount"]
[1756950354589,2.54495111,210.97,210.96,0.7]
[1756950355374,7.28476063,210.98,210.96,0.7]
[1756950355681,2.57495111,210.97,210.96,0.7]
[1756950356298,9.85998926,210.97,210.95,0.03]
[1756950356801,46.85998926,210.97,210.95,0.03]
[1756950357299,7.28518622,210.96,210.95,0.03]
[1756950357497,4.74023511,210.96,210.95,0.03]
[1756950357803,7.28518622,210.96,210.95,0.03]
[1756950359687,7.98518622,210.96,210.95,0.03]
[1756950359880,33.66104791,210.96,210.95,0.03]
[1756950360407,30.74068455,210.94,210.93,0.03]
[1756950360588,70.28563566,210.94,210.93,0.03]
[1756950360903,70.98563566,210.94,210.93,0.03]
[1756950361106,72.8862795,210.94,210.93,0.03]
[1756950363302,72.1862795,210.94,210.93,0.03]
[1756950363690,6.64132839,210.94,210.93,0.03]
[1756950363888,46.1862795,210.94,210.93,0.03]
[1756950364597,46.8862795,210.94,210.93,0.03]
[1756950369392,72.8862795,210.94,210.93,0.03]
[1756950371634,72.1862795,210.94,210.93,0.03]
[1756950371997,72.8562795,210.94,210.93,0.03]
[1756950373535,72.1862795,210.94,210.93,0.03]
[1756950373830,72.8562795,210.94,210.93,0.03]
[1756950383124,86.45187351,210.94,210.93,0.03]
[1756950383324,26.0,210.91,210.89,1e-08]
[1756950383518,53.14054512,210.9,210.89,1e-08]
[1756950383703,26.0,210.87,210.83,0.1]
[1756950384029,65.54495111,210.87,210.83,0.1]
[1756950384326,2.54495111,210.85,210.83,0.1]
[1756950384624,39.54495111,210.85,210.83,0.1]
[1756950384825,40.21495111,210.85,210.83,0.1]
[1756950385010,42.11631772,210.85,210.83,0.1]
[1756950385322,46.8590258,210.85,210.83,0.1]
[1756950387238,62.99957092,210.85,210.83,0.1]
[1756950387442,60.45461981,210.85,210.83,0.1]
[1756950387736,4.44631772,210.85,210.84,0.73]
[1756950387903,41.44631772,210.85,210.84,0.73]
[1756950388103,4.44631772,210.85,210.84,0.73]
[1756950388309,41.44631772,210.85,210.84,0.03]
[1756950388935,46.1890258,210.85,210.84,0.03]
[1756950389327,9.1890258,210.85,210.84,0.03]
[1756950389630,46.1890258,210.85,210.84,0.03]
[1756950390434,44.28765919,210.85,210.84,0.03]
[1756950391215,44.95765919,210.85,210.84,0.03]
[1756950393717,42.41270808,210.85,210.84,0.03]
[1756950394122,44.95765919,210.85,210.84,0.03]
[1756950394510,5.41270808,210.85,210.84,0.03]
[1756950394717,70.28765919,210.85,210.84,0.03]
[1756950396540,72.18911618,210.85,210.84,0.03]
[1756950397339,35.18911618,210.85,210.84,0.03]
[1756950397541,72.18911618,210.85,210.84,0.03]
[1756950398032,72.85911618,210.85,210.84,0.03]
[1756950400241,86.45471019,210.85,210.84,0.03]
[1756950400542,86.45471019,210.85,210.83,0.1]
[1756950400543,13.59559401,210.84,210.83,1e-08]
[1756950400727,26.32034956,210.84,210.83,1e-08]
[1756950400927,26.99034956,210.84,210.83,1e-08]
[1756950401133,28.89207776,210.84,210.83,1e-08]
[1756950401450,65.52495111,210.84,210.83,0.70000001]
[1756950401746,65.52495111,210.84,210.83,1e-08]
[1756950402433,70.26788413,210.84,210.83,0.72000001]
[1756950402847,70.26788413,210.84,210.83,1e-08]
[1756950403151,70.26788413,210.84,210.83,0.72000001]
[1756950404647,70.26788413,210.84,210.83,1e-08]
[1756950404949,26.0,210.81,210.77,0.03]
[1756950405137,39.52495111,210.8,210.77,0.03]
[1756950405340,26.0,210.78,210.77,1e-08]
[1756950405552,65.52495111,210.78,210.77,1e-08]
[1756950405840,66.21495111,210.78,210.77,1e-08]
[1756950406631,70.95923424,210.78,210.77,1e-08]
[1756950407549,85.99577389,210.78,210.77,1e-08]
[1756950408848,86.28009703,210.78,210.77,1e-08]
[1756950409953,0.28432314,210.76,210.62,0.1]
[1756950410161,13.87991715,210.74,210.68,0.72]
[1756950410355,3.98589675,210.69,210.68,0.72]
[1756950410544,40.96589675,210.69,210.68,0.72]
[1756950410746,45.71220649,210.69,210.68,0.72]
[1756950412533,8.73220649,210.69,210.68,0.72]
[1756950412746,45.71220649,210.69,210.68,0.72]
[1756950412949,57.57798085,210.69,210.65,0.72]
[1756950413256,3.98589675,210.66,210.63,0.72]
[1756950413457,3.98589675,210.64,210.62,0.1]
[1756950413640,40.96589675,210.64,210.62,0.1]
[1756950414163,40.96589675,210.64,210.63,0.72]
[1756950414752,45.71333313,210.64,210.63,0.72]
[1756950416044,45.71333313,210.64,210.63,0.75]
[1756950417065,45.71333313,210.64,210.63,0.03]
[1756950418058,4.74743638,210.64,210.63,0.75]
[1756950418260,41.74743638,210.64,210.63,0.75]
[1756950418456,4.74743638,210.64,210.63,0.75]
[1756950418767,41.74743638,210.64,210.63,0.75]
[1756950420075,37.0,210.64,210.63,0.75]
[1756950420253,37.0,210.66,210.63,4.73589675]
[1756950420573,37.0,210.67,210.64,0.72]
[1756950421783,11.92077251,210.78,210.66,3.98589675]
[1756950422067,40.40450823,210.77,210.73,3.98589675]
[1756950422250,40.40450823,210.77,210.73,0.72]
[1756950422450,40.40450823,210.77,210.72,3.98589675]
[1756950422451,3.98589675,210.74,210.68,0.72]
[1756950422654,40.98589675,210.73,210.68,0.72]
[1756950422851,4.67589675,210.72,210.66,4.70589675]
[1756950423165,30.65813782,210.75,210.64,0.72]
[1756950423166,3.98589675,210.69,210.64,0.72]
[1756950423368,37.0,210.68,210.64,0.72]
[1756950423666,0.69,210.67,210.63,0.03]
[1756950423872,37.0,210.66,210.63,0.03]
[1756950424047,4.74721101,210.65,210.63,0.03]
[1756950424447,4.74721101,210.65,210.63,0.75]
[1756950425662,4.74721101,210.65,210.63,0.03]
[1756950425856,37.0,210.64,210.63,0.03]
[1756950427760,41.74743638,210.64,210.63,0.03]
[1756950428072,37.0,210.64,210.63,0.03]
[1756950428278,37.0,210.64,210.63,0.75]
[1756950428667,37.0,210.64,210.63,4.73589675]
[1756950428850,4.7469058,210.67,210.63,4.73589675]
[1756950428851,37.0,210.66,210.63,4.73589675]
[1756950429055,37.0,210.66,210.64,4.70589675]
[1756950429254,37.0,210.66,210.65,0.72]
[1756950429477,4.7465344,210.69,210.65,4.70589675]
[1756950429674,37.0,210.68,210.67,3.98589675]
[1756950429875,37.0,210.68,210.66,0.72]
[1756950430061,37.0,210.68,210.67,3.98589675]
[1756950430984,42.43653502,210.68,210.65,3.98589675]
[1756950431170,0.69,210.67,210.63,4.01589675]
[1756950431373,0.69,210.67,210.64,3.98589675]
[1756950431679,41.74653502,210.68,210.64,4.70589675]
[1756950432056,41.74653502,210.68,210.64,3.98589675]
[1756950432284,41.74653502,210.68,210.65,4.66589675]
[1756950432490,30.74628731,210.7,210.66,0.68]
[1756950432785,30.74628731,210.7,210.68,3.98589675]
[1756950432786,37.0,210.69,210.68,3.98589675]
[1756950432997,37.0,210.69,210.67,3.98589675]
[1756950433285,4.66589675,210.74,210.68,4.66589675]
[1756950433492,4.74540881,210.73,210.7,3.98589675]
[1756950433664,37.0,210.72,210.71,4.66589675]
[1756950433995,37.0,210.72,210.69,0.68]
[1756950434183,37.0,210.72,210.7,3.98589675]
[1756950434487,37.0,210.72,210.7,4.66589675]
[1756950434784,37.0,210.72,210.71,0.68]
[1756950434957,37.0,210.74,210.71,4.66589675]
[1756950435472,37.0,210.74,210.71,3.98589675]
[1756950435691,37.0,210.74,210.72,4.66589675]
[1756950436566,41.74519245,210.74,210.72,3.98589675]
[1756950436772,41.74519245,210.74,210.71,3.98589675]
[1756950437186,41.74519245,210.74,210.71,4.66589675]
[1756950437367,41.74519245,210.74,210.7,3.98589675]
[1756950437574,0.68,210.73,210.7,3.98589675]
[1756950438471,41.74519245,210.74,210.7,3.98589675]
[1756950438682,42.42519245,210.74,210.7,3.98589675]
[1756950439001,0.68,210.73,210.68,3.98589675]
[1756950439179,37.68,210.72,210.68,3.98589675]
[1756950439687,37.68,210.72,210.68,4.66589675]
[1756950439893,37.68,210.72,210.64,0.03]
[1756950439894,37.0,210.72,210.69,4.66589675]
[1756950440099,37.0,210.72,210.7,3.98589675]
[1756950440293,37.0,210.72,210.7,4.66589675]
[1756950442488,37.0,210.72,210.7,3.98589675]
[1756950442690,36.98,210.75,210.71,4.66589675]
[1756950442898,36.98,210.76,210.74,3.98589675]
[1756950443096,36.98,210.76,210.74,4.66589675]
[1756950443500,0.06,210.77,210.75,4.66589675]
[1756950443798,0.06,210.77,210.76,3.98589675]
[1756950444477,0.74,210.77,210.7,5.4259236]
[1756950444670,36.98,210.76,210.73,3.98589675]
[1756950444875,37.66,210.76,210.73,3.98589675]
[1756950445894,36.98,210.76,210.74,3.98589675]
[1756950447494,0.68,210.75,210.7,0.68]
[1756950447695,0.68,210.75,210.72,3.98589675]
[1756950448071,36.98,210.76,210.72,3.98589675]
[1756950448271,37.66,210.76,210.73,3.98589675]
[1756950448501,0.06,210.77,210.75,3.98589675]
[1756950448797,0.06,210.77,210.76,3.98589675]
[1756950449480,0.06,210.77,210.76,4.66589675]
[1756950452907,0.06,210.77,210.76,9.41063009]
[1756950454708,0.06,210.77,210.76,9.69495323]
[1756950461395,0.06,210.77,210.76,3.98589675]
[1756950461597,0.74,210.77,210.76,3.98589675]
[1756950461797,0.06,210.77,210.76,3.98589675]
[1756950465582,0.76,210.77,210.76,3.98589675]
[1756950466195,0.06,210.77,210.76,3.98589675]
[1756950468423,0.06,210.77,210.76,9.73495323]
[1756950468799,0.06,210.77,210.76,46.69495323]
[1756950468999,0.06,210.77,210.76,47.26432123]
[1756950469514,0.06,210.78,210.77,0.28432314]
[1756950469725,0.06,210.78,210.77,3.55127199]
[1756950471217,0.06,210.78,210.77,21.89137423]
[1756950474595,0.06,210.78,210.77,100.49137423]
[1756950486632,0.06,210.8,210.79,0.28432314]
[1756950486833,1e-08,210.83,210.81,39.87991715]
[1756950487035,0.7,210.91,210.87,13.87991715]
[1756950487225,0.7,210.9,210.89,0.28432314]
[1756950488030,0.7,210.9,210.85,0.56912497]
[1756950488232,0.7,210.9,210.87,2.83127199]
[1756950488544,0.7,210.89,210.88,39.77127199]
[1756950490412,0.7,210.89,210.88,2.83127199]
[1756950490741,0.7,210.89,210.88,39.77127199]
[1756950492527,0.7,210.89,210.88,39.48694885]
[1756950493511,7.98880307,210.89,210.83,2.54694885]
[1756950493716,0.68,210.88,210.84,36.94]
[1756950494239,3.22694885,210.87,210.8,4.74383301]
[1756950494440,0.68,210.86,210.81,2.54694885]
[1756950494617,0.68,210.85,210.82,36.94]
[1756950494817,0.68,210.84,210.82,36.94]
[1756950495032,0.68,210.83,210.82,37.22432314]
[1756950495232,0.68,210.83,210.77,14.29559401]
[1756950495439,0.68,210.82,210.8,2.54694885]
[1756950495644,2.54694885,210.86,210.81,36.94]
[1756950495831,2.54694885,210.86,210.8,2.54694885]
[1756950496033,2.54694885,210.84,210.81,36.94]
[1756950496339,0.68,210.83,210.81,36.94]
[1756950496527,0.68,210.82,210.81,36.94]
[1756950498950,0.68,210.82,210.8,36.92]
[1756950499114,0.68,210.81,210.8,36.92]
[1756950501157,0.68,210.83,210.8,39.46694885]
[1756950501450,0.68,210.82,210.81,2.54694885]
[1756950502441,4.74297037,210.84,210.8,36.92]
[1756950502652,0.68,210.82,210.8,36.92]
[1756950502949,0.68,210.81,210.8,36.92]
[1756950504088,0.68,210.84,210.8,39.46694885]
[1756950504248,0.68,210.83,210.8,39.46694885]
[1756950504437,0.68,210.82,210.8,39.46694885]
[1756950505628,0.68,210.81,210.77,78.88432314]
[1756950505827,3.22694885,210.8,210.76,0.03]
[1756950506046,3.22694885,210.8,210.77,36.92]
[1756950506251,0.68,210.79,210.77,36.92]
[1756950506454,0.68,210.78,210.77,36.92]
[1756950507451,0.68,210.78,210.77,36.95]
[1756950508963,5.42428313,210.78,210.77,0.03]
[1756950509458,7.97123198,210.78,210.77,0.03]
[1756950512565,21.56682599,210.78,210.77,0.03]
[1756950512953,39.59559401,210.76,210.75,0.03]
[1756950513268,16.14254286,210.76,210.75,0.03]
[1756950513474,16.82254286,210.76,210.75,0.03]
[1756950514258,47.5672762,210.76,210.75,0.03]
[1756950514458,21.5672762,210.76,210.75,0.03]
[1756950516162,23.4696375,210.76,210.75,0.03]
[1756950516674,49.75396064,210.76,210.75,0.03]
[1756950517179,39.59559401,210.74,210.73,0.03]
[1756950517358,42.14254286,210.74,210.73,0.03]
[1756950517554,42.82254286,210.74,210.73,0.03]
[1756950518473,47.56772649,210.74,210.73,0.03]
[1756950519082,45.02077764,210.74,210.73,0.03]
[1756950519277,47.56772649,210.74,210.73,0.03]
[1756950519870,49.47026876,210.74,210.73,0.03]
[1756950520059,86.41026876,210.74,210.73,0.03]
[1756950521871,86.6945919,210.74,210.69,0.03]
[1756950522092,13.59559401,210.72,210.69,0.03]
[1756950522290,16.14254286,210.72,210.69,0.03]
[1756950522465,51.21559401,210.72,210.69,0.03]
[1756950522664,55.66517563,210.72,210.69,0.03]
[1756950523676,44.26826678,210.72,210.69,0.03]
[1756950523879,44.91258286,210.72,210.69,0.03]
[1756950524387,44.23258286,210.72,210.69,0.03]
[1756950524588,33.29258286,210.72,210.69,0.03]
[1756950524790,65.48694885,210.72,210.71,0.73]
[1756950525294,36.94,210.72,210.71,0.73]
[1756950526383,4.74415053,210.79,210.71,3.27694885]
[1756950526690,29.02415053,210.79,210.74,2.54694885]
[1756950527082,31.57109938,210.79,210.75,0.7]
[1756950527468,31.57109938,210.79,210.76,0.7]
[1756950528007,31.57109938,210.79,210.73,2.54694885]
[1756950528299,31.57109938,210.79,210.77,0.7]
[1756950528489,31.57109938,210.79,210.74,0.7]
[1756950529076,24.28,210.79,210.74,3.24694885]
[1756950529277,24.28,210.79,210.75,0.7]
[1756950529693,2.60694885,210.78,210.73,0.7]
[1756950529874,7.29145708,210.77,210.73,0.7]
[1756950530074,7.35126587,210.78,210.74,0.7]
[1756950530398,7.35126587,210.78,210.75,0.7]
[1756950530593,7.35126587,210.78,210.76,0.7]
[1756950530798,2.60694885,210.78,210.76,0.7]
[1756950531178,7.35131872,210.78,210.74,0.7]
[1756950531386,7.35131872,210.78,210.75,0.7]
[1756950531588,8.78830236,210.78,210.75,0.7]
[1756950531782,8.78830236,210.78,210.72,3.98393249]
[1756950531985,8.78830236,210.78,210.71,0.73]
[1756950531986,3.98393249,210.74,210.71,0.73]
[1756950532592,40.92393249,210.75,210.72,0.7]
[1756950535102,46.34893842,210.75,210.71,0.03]
[1756950535398,45.66893842,210.75,210.72,0.7]
[1756950536196,45.66893842,210.75,210.71,0.03]
[1756950536399,3.98393249,210.73,210.71,0.03]
[1756950536618,3.98393249,210.72,210.71,0.03]
[1756950536792,41.58393249,210.72,210.71,0.03]
[1756950537483,46.3295665,210.72,210.71,0.03]
[1756950540107,45.6495665,210.72,210.71,0.03]
[1756950540296,48.23201828,210.72,210.71,0.03]
[1756950540696,36.92,210.72,210.71,0.03]
[1756950540895,62.92,210.72,210.71,0.03]
[1756950541204,67.58393249,210.72,210.71,0.03]
[1756950542196,72.3295665,210.72,210.71,0.03]
[1756950542606,74.23210878,210.72,210.71,0.03]
[1756950543512,10.63210878,210.72,210.71,0.03]
[1756950543710,4.74450823,210.77,210.71,0.73]
[1756950543888,3.98393249,210.74,210.71,0.03]
[1756950544590,8.72916201,210.74,210.71,0.03]
[1756950545106,45.64916201,210.74,210.71,0.03]
[1756950545306,41.66522952,210.74,210.71,0.03]
[1756950545602,29.98393249,210.72,210.71,0.03]
[1756950545802,66.90393249,210.72,210.71,0.03]
[1756950546001,67.58393249,210.72,210.71,0.03]
[1756950546205,65.50254227,210.72,210.71,0.03]
[1756950546382,69.48647476,210.72,210.71,0.03]
[1756950546587,74.23210877,210.72,210.71,0.03]
[1756950547311,33.32817628,210.72,210.71,0.03]
[1756950547608,73.55210877,210.72,210.71,0.03]
[1756950548714,32.64817628,210.72,210.71,0.03]
[1756950548906,36.92,210.72,210.71,0.73]
[1756950549304,40.90393249,210.74,210.71,0.73]
[1756950549494,40.90393249,210.74,210.71,0.03]
[1756950550006,36.92,210.74,210.72,0.7]
[1756950550204,36.92,210.74,210.71,0.03]
[1756950550389,41.58393249,210.74,210.71,0.03]
[1756950550789,9.4093413,210.73,210.71,0.03]
[1756950551620,8.7293413,210.73,210.71,0.03]
[1756950552417,4.63393249,210.72,210.71,0.03]
[1756950554223,46.2995665,210.72,210.71,0.03]
[1756950554516,4.74563401,210.72,210.71,0.03]
[1756950554718,36.92,210.72,210.71,0.75]
[1756950555722,41.66563401,210.72,210.71,0.03]
[1756950556807,36.92,210.72,210.71,0.03]
[1756950557299,36.92,210.72,210.71,0.75]
[1756950557609,67.66474496,210.76,210.71,4.73393249]
[1756950557814,67.66474496,210.76,210.72,0.72]
[1756950558026,36.92,210.76,210.73,0.72]
[1756950558232,36.92,210.76,210.73,4.70393249]
[1756950558527,36.92,210.76,210.74,0.72]
[1756950558721,8.78842281,210.78,210.75,0.72]
[1756950558927,45.70842281,210.78,210.73,0.72]
[1756950559230,46.35842281,210.78,210.73,0.72]
[1756950559898,3.98393249,210.74,210.71,0.03]
[1756950560112,3.98393249,210.72,210.71,0.03]
[1756950560625,4.63393249,210.72,210.71,0.03]
[1756950560828,3.98393249,210.72,210.71,0.03]
[1756950561014,4.69393249,210.72,210.71,0.03]
[1756950561901,5.45563401,210.72,210.71,0.03]
[1756950562100,9.4395665,210.72,210.71,0.03]
[1756950563023,8.7895665,210.72,210.71,0.03]
[1756950563215,4.80563401,210.72,210.71,0.03]
[1756950563403,8.7895665,210.72,210.71,0.03]
[1756950563834,0.06,210.72,210.71,0.75]
[1756950564137,0.06,210.72,210.71,4.73393249]
[1756950565536,0.06,210.72,210.71,9.47979172]
[1756950568416,0.06,210.72,210.71,9.76411486]
[1756950578226,0.06,210.72,210.71,46.66411486]
[1756950578430,0.06,210.72,210.71,125.26411486]
[1756950578929,0.06,210.72,210.71,134.87577638]
[1756950579227,0.06,210.72,210.71,138.85970887]
[1756950580439,0.06,210.72,210.71,125.26411486]
[1756950581621,0.06,210.72,210.71,138.85970887]
[1756950582018,0.06,210.75,210.74,26.0]
[1756950582210,0.06,210.75,210.74,67.45335452]
[1756950582416,0.06,210.75,210.74,67.60393249]
[1756950583407,0.73,210.75,210.73,40.88393249]
[1756950583611,0.67,210.74,210.71,4.01393249]
[1756950583937,0.67,210.73,210.71,40.91393249]
[1756950584623,0.67,210.73,210.72,3.98393249]
[1756950585739,0.67,210.73,210.71,40.91393249]
[1756950586531,0.67,210.73,210.71,45.65974615]
[1756950586926,0.06,210.75,210.71,45.65974615]
[1756950587134,0.67,210.74,210.71,45.65974615]
[1756950587814,0.67,210.74,210.71,40.91393249]
[1756950588837,0.67,210.74,210.72,3.98393249]
[1756950589036,0.67,210.74,210.71,45.65976507]
[1756950592231,0.06,210.75,210.71,46.37976507]
[1756950592432,0.73,210.75,210.71,46.37976507]
[1756950592631,0.06,210.75,210.72,8.72953139]
[1756950593038,0.06,210.75,210.73,36.9]
[1756950594154,0.67,210.74,210.73,36.9]
[1756950594649,0.67,210.74,210.71,36.93]
[1756950594848,0.67,210.73,210.71,36.93]
[1756950595149,0.67,210.72,210.71,36.93]
[1756950596054,3.27959845,210.75,210.71,36.93]
[1756950596236,3.27959845,210.75,210.72,0.72]
[1756950596237,0.06,210.75,210.72,0.72]
[1756950596553,0.06,210.75,210.72,3.26959845]
[1756950597051,0.06,210.75,210.73,0.72]
[1756950597233,0.06,210.75,210.74,2.54959845]
[1756950597433,0.06,210.75,210.74,82.15392159]
[1756950597933,0.06,210.75,210.74,86.89910522]
[1756950598446,0.06,210.75,210.74,8.29910522]
[1756950599729,0.41,210.81,210.76,4.74473334]
[1756950600051,2.54959845,210.8,210.74,2.54959845]
[1756950600249,2.54959845,210.8,210.75,36.9]
[1756950600434,2.54959845,210.79,210.75,36.9]
[1756950600753,9.25411383,210.81,210.75,39.44959845]
[1756950601053,4.74383301,210.8,210.75,39.44959845]
[1756950601432,7.29343146,210.8,210.75,36.9]
[1756950601846,0.67,210.79,210.75,36.9]
[1756950602051,0.67,210.78,210.75,36.9]
[1756950602854,7.29343146,210.8,210.75,36.9]
[1756950603155,0.67,210.79,210.75,36.9]
[1756950603351,0.67,210.79,210.75,37.62]
[1756950603557,0.67,210.78,210.75,36.9]
[1756950604048,0.67,210.77,210.74,36.88]
[1756950604258,0.67,210.76,210.74,36.88]
[1756950606148,0.67,210.76,210.73,36.88]
[1756950606349,3.21959845,210.78,210.73,37.6]
[1756950606546,7.29343146,210.8,210.76,2.54959845]
[1756950606863,7.96343146,210.8,210.76,40.14959845]
[1756950607151,0.67,210.8,210.76,40.14959845]
[1756950607353,0.67,210.82,210.78,2.54959845]
[1756950607530,0.67,210.82,210.78,3.26959845]
[1756950608038,0.06,210.83,210.79,0.72]
[1756950608236,0.73,210.83,210.79,0.72]
[1756950609355,2.54959845,210.8,210.75,0.72]
[1756950609545,0.67,210.79,210.74,36.88]
[1756950609853,0.67,210.78,210.74,36.88]
[1756950610242,0.67,210.77,210.73,3.26959845]
[1756950610435,0.67,210.77,210.72,78.6]
[1756950610643,0.67,210.76,210.73,36.88]
[1756950610849,2.54959845,210.77,210.73,36.88]
[1756950611050,0.67,210.77,210.73,37.6]
[1756950611653,0.67,210.77,210.75,0.03]
[1756950612160,3.22959845,210.76,210.75,0.03]
[1756950612662,7.97433179,210.76,210.75,0.03]
[1756950614654,7.29433179,210.76,210.75,0.03]
[1756950614854,0.68,210.78,210.75,0.03]
[1756950615353,0.68,210.77,210.75,0.03]
[1756950615554,5.0991969,210.79,210.75,0.03]
[1756950615555,10.52326998,210.79,210.75,0.03]
[1756950615755,13.07286843,210.79,210.75,0.03]
[1756950616150,5.0991969,210.79,210.76,0.67]
[1756950616456,2.54959845,210.8,210.76,0.67]
[1756950616681,2.54959845,210.81,210.76,0.67]
[1756950616860,3.28959845,210.82,210.77,0.67]
[1756950617051,3.21959845,210.81,210.78,3.21959845]
[1756950617258,0.06,210.82,210.79,3.21959845]
[1756950617767,0.06,210.82,210.8,0.67]
[1756950618067,0.06,210.82,210.81,2.54959845]
[1756950618274,0.06,210.82,210.81,3.21959845]
[1756950618859,0.06,210.82,210.81,7.96320643]
[1756950619671,0.06,210.82,210.81,8.24752957]
[1756950621257,0.06,210.82,210.79,0.56928696]
[1756950621458,0.06,210.82,210.79,3.21959845]
[1756950622345,0.06,210.82,210.8,2.54959845]
[1756950623657,0.68,210.81,210.77,2.54959845]
[1756950623855,0.06,210.82,210.78,3.21959845]
[1756950624166,0.06,210.82,210.8,2.54959845]
[1756950624674,0.06,210.82,210.81,3.21959845]
[1756950625575,0.06,210.82,210.81,3.50392159]
[1756950625950,0.06,210.82,210.81,37.83432314]
[1756950626153,0.06,210.82,210.81,40.38392159]
[1756950626448,0.06,210.82,210.81,59.29235653]
[1756950626872,0.06,210.82,210.81,56.74275808]
[1756950627178,0.06,210.82,210.81,59.29235653]
[1756950627850,0.06,210.82,210.81,137.89235653]
[1756950628064,0.06,210.82,210.81,137.32312358]
[1756950631775,0.06,210.82,210.81,85.89320643]
[1756950631985,0.06,210.82,210.81,44.15320643]
[1756950632159,0.06,210.82,210.81,44.43752957]
[1756950632572,0.06,210.82,210.81,45.10752957]
[1756950634356,0.06,210.82,210.81,8.24752957]
[1756950634559,0.06,210.82,210.81,45.10752957]
[1756950634866,0.06,210.82,210.81,58.70312358]
[1756950637384,0.06,210.82,210.81,137.30312358]
[1756950637589,0.06,210.82,210.81,139.20340624]
[1756950640178,1e-08,210.82,210.81,136.65380779]
[1756950640395,0.06,210.85,210.84,39.59559401]
[1756950640572,0.06,210.85,210.84,2.83392159]
[1756950640772,0.06,210.85,210.81,6.64389064]
[1756950640773,0.74,210.85,210.83,2.54959845]
[1756950640974,0.06,210.85,210.84,36.86]
[1756950641480,0.74,210.85,210.84,36.86]
[1756950641676,0.74,210.85,210.82,36.86]
[1756950641862,0.68,210.84,210.82,36.86]
[1756950642058,0.66,210.83,210.79,2.54959845]
[1756950642389,0.66,210.82,210.8,36.86]
[1756950642573,0.66,210.81,210.8,36.86]
[1756950642772,0.66,210.81,210.75,0.03]
[1756950642978,0.66,210.81,210.78,2.54959845]
[1756950643188,0.66,210.8,210.78,39.40959845]
[1756950643896,2.72959845,210.85,210.78,39.40959845]
[1756950643897,0.66,210.82,210.78,44.15376243]
[1756950644094,0.66,210.81,210.78,39.40959845]
[1756950644399,0.66,210.82,210.78,39.40959845]
[1756950644891,0.66,210.81,210.78,39.40959845]
[1756950646183,0.66,210.81,210.78,44.15380733]
[1756950646906,0.66,210.8,210.75,26.31432314]
[1756950647193,0.66,210.79,210.76,36.86]
[1756950647397,0.66,210.79,210.78,0.03]
[1756950651999,7.95365651,210.79,210.78,0.03]
[1756950655486,9.38854778,210.79,210.78,0.03]
[1756950658095,11.29027598,210.79,210.78,0.03]
[1756950660519,48.15027598,210.79,210.78,0.03]
[1756950661219,1.9017282,210.79,210.78,0.03]
[1756950661425,4.64448972,210.81,210.78,0.03]
[1756950661613,3.98448972,210.79,210.78,0.03]
[1756950661914,0.06,210.82,210.78,4.01448972]
[1756950662098,4.80345938,210.82,210.78,0.03]
[1756950662300,8.7879491,210.82,210.78,0.03]
[1756950662615,3.98448972,210.8,210.78,0.03]
[1756950663019,0.66,210.79,210.78,0.03]
[1756950663523,9.38854778,210.79,210.78,0.03]
[1756950664108,5.40405806,210.79,210.78,0.03]
[1756950664307,9.38854778,210.79,210.78,0.03]
[1756950665396,8.72833163,210.8,210.78,0.03]
[1756950665720,3.98448972,210.8,210.78,0.03]
[1756950666315,4.64448972,210.8,210.78,0.03]
[1756950667508,9.38843414,210.8,210.78,0.03]